bitfinex/quotes_BTCUSD_20241223
["timestamp","ask_amount","ask_price","bid_price","bid_amount"]
[1734969998621,8.55e-05,93599.0,93597.0,0.213682]
[1734969999188,8.55e-05,93599.0,93596.0,0.007]
[1734969999617,8.55e-05,93599.0,93586.0,0.216707]
[1734970000021,8.55e-05,93599.0,93586.0,0.003]
[1734970000428,8.55e-05,93599.0,93587.0,0.213704]
[1734970000630,8.55e-05,93599.0,93587.0,0.427408]
[1734970000806,8.55e-05,93599.0,93597.0,0.004]
[1734970001015,8.55e-05,93599.0,93587.0,0.427408]
[1734970001416,8.55e-05,93599.0,93587.0,0.47229225]
[1734970001844,8.55e-05,93599.0,93596.0,0.003]
[1734970002030,8.55e-05,93599.0,93597.0,0.003]
[1734970002384,8.55e-05,93599.0,93587.0,0.427408]
[1734970002589,8.55e-05,93599.0,93591.0,0.213693]
[1734970002976,8.55e-05,93599.0,93592.0,0.213693]
[1734970003411,8.55e-05,93599.0,93597.0,0.001]
[1734970003601,8.55e-05,93599.0,93597.0,0.214681]
[1734970004007,8.55e-05,93599.0,93592.0,0.213693]
[1734970004495,8.55e-05,93599.0,93597.0,0.005]
[1734970004704,8.55e-05,93599.0,93598.0,0.213679]
[1734970005614,8.55e-05,93599.0,93592.0,0.006]
[1734970005861,0.15,93597.0,93575.0,0.3224982]
[1734970006063,0.15,93597.0,93577.0,0.213726]
[1734970006702,0.15,93597.0,93592.0,0.002]
[1734970007120,0.15133554,93598.0,93592.0,0.002]
[1734970007713,0.213686,93595.0,93592.0,0.002]
[1734970008084,0.15,93592.0,93575.0,0.3224982]
[1734970008671,0.15,93586.0,93575.0,0.3224982]
[1734970008981,0.15,93586.0,93575.0,0.02140321]
[1734970009190,0.15,93586.0,93572.0,0.37505021]
[1734970009398,0.15,93586.0,93572.0,0.16131221]
[1734970009834,0.15,93590.0,93575.0,0.02161313]
[1734970010043,0.15,93590.0,93580.0,0.001]
[1734970010998,0.15,93592.0,93580.0,0.001]
[1734970011205,0.15,93592.0,93580.0,0.003]
[1734970011413,0.15,93592.0,93580.0,0.001]
[1734970011811,0.15,93592.0,93580.0,0.002]
[1734970012024,0.15,93592.0,93576.0,0.213729]
[1734970012477,0.36503063,93592.0,93580.0,0.003]
[1734970012687,0.363695,93592.0,93580.0,0.003]
[1734970012895,0.213695,93591.0,93580.0,0.003]
[1734970013109,0.15,93589.0,93580.0,0.003]
[1734970013316,0.15,93583.0,93580.0,0.003]
[1734970013493,0.15,93581.0,93580.0,0.003]
[1734970013945,0.15,93581.0,93570.0,0.3224982]
[1734970014155,0.15,93581.0,93570.0,0.2484982]
[1734970014368,0.15,93579.0,93576.0,0.003]
[1734970014579,0.15,93577.0,93576.0,0.003]
[1734970014789,0.25398632,93577.0,93576.0,0.003]
[1734970015220,0.1,93576.0,93560.0,0.0955277]
[1734970015425,0.21372,93580.0,93560.0,0.0955277]
[1734970015426,0.546464,93561.0,93560.0,0.0955277]
[1734970015634,0.65045032,93561.0,93560.0,0.0955277]
[1734970015849,0.363816,93538.0,93537.0,0.0741507]
[1734970016056,0.69900232,93538.0,93537.0,0.0741507]
[1734970016494,0.69900232,93538.0,93537.0,0.0527687]
[1734970016923,0.2,93535.0,93534.0,0.07914256]
[1734970017143,0.2,93535.0,93485.0,0.0001708]
[1734970017144,0.363887,93507.0,93487.0,0.07914256]
[1734970017371,0.59747332,93507.0,93506.0,0.00070459]
[1734970017613,0.79747332,93507.0,93506.0,5.9e-07]
[1734970017821,0.413901,93501.0,93487.0,0.07914256]
[1734970018029,0.3513,93498.0,93497.0,6e-07]
[1734970018231,0.71859432,93498.0,93497.0,0.00016085]
[1734970018663,0.71859432,93498.0,93485.0,0.0001708]
[1734970018664,0.2,93493.0,93485.0,0.0001708]
[1734970018882,0.4553238,93493.0,93485.0,0.0001708]
[1734970019105,0.35,93487.0,93485.0,0.0001708]
[1734970019311,0.1,93475.0,93434.0,0.0001708]
[1734970019492,0.15,93445.0,93434.0,0.0001708]
[1734970019721,0.15,93443.0,93434.0,0.00033093]
[1734970020261,0.15,93443.0,93435.0,0.10398632]
[1734970020438,0.15,93443.0,93436.0,0.21405]
[1734970020639,0.15,93443.0,93437.0,0.10398632]
[1734970021088,0.21399,93462.0,93438.0,0.214045]
[1734970021317,0.09508349,93472.0,93471.0,0.21397]
[1734970021520,0.09508349,93472.0,93455.0,0.023]
[1734970021721,0.09508349,93472.0,93461.0,0.023]
[1734970021922,0.09508349,93472.0,93469.0,0.213974]
[1734970022123,0.21392,93493.0,93463.0,0.023]
[1734970022124,0.09508349,93483.0,93463.0,0.023]
[1734970022348,0.00133724,93482.0,93464.0,0.213984]
[1734970022499,0.00133721,93482.0,93464.0,0.23520127]
[1734970022699,0.09508349,93483.0,93464.0,0.2353614]
[1734970022902,0.213944,93482.0,93464.0,0.0213774]
[1734970023102,0.213944,93482.0,93469.0,0.001]
[1734970023474,0.09508349,93483.0,93469.0,0.001]
[1734970023703,0.15,93474.0,93469.0,0.001]
[1734970023917,0.15,93472.0,93469.0,0.001]
[1734970024159,0.10532392,93471.0,93434.0,0.0001708]
[1734970024371,0.214043,93440.0,93434.0,0.0001708]
[1734970024625,0.213972,93470.0,93434.0,0.00033117]
[1734970024878,0.10532406,93469.0,93435.0,8.56e-05]
[1734970025112,0.213976,93468.0,93435.0,8.56e-05]
[1734970025370,0.25,93472.0,93435.0,8.56e-05]
[1734970025371,0.10532406,93467.0,93435.0,0.02156804]
[1734970025613,0.213987,93464.0,93440.0,0.214039]
[1734970025815,0.213974,93470.0,93441.0,0.10398632]
[1734970026018,0.0766712,93482.0,93448.0,0.214021]
[1734970026019,0.15,93467.0,93448.0,0.214021]
[1734970026206,0.15,93467.0,93453.0,0.21401]
[1734970026411,0.15,93467.0,93454.0,0.237009]
[1734970026862,0.15,93467.0,93454.0,0.023]
[1734970027081,0.001,93469.0,93460.0,0.213994]
[1734970027262,0.001,93469.0,93465.0,0.213982]
[1734970028310,0.001,93467.0,93465.0,0.213982]
[1734970028525,0.001,93467.0,93462.0,0.213989]
[1734970028744,0.001,93467.0,93446.0,0.2484982]
[1734970028949,0.001,93469.0,93431.0,0.2484982]
[1734970028950,0.15,93465.0,93431.0,0.2484982]
[1734970029159,0.15,93457.0,93437.0,0.02156031]
[1734970029379,0.15,93457.0,93445.0,0.214027]
[1734970029794,0.15,93457.0,93438.0,0.10398632]
[1734970030007,0.15,93457.0,93455.0,0.214006]
[1734970030212,0.001,93467.0,93455.0,0.214006]
[1734970030424,0.001,93467.0,93460.0,0.213994]
[1734970030644,0.001,93467.0,93455.0,0.10398632]
[1734970030851,0.001,93467.0,93456.0,0.214004]
[1734970031061,0.15,93471.0,93465.0,0.001]
[1734970031315,0.15,93469.0,93452.0,0.2484982]
[1734970031520,0.15,93469.0,93453.0,0.10398632]
[1734970031667,0.15,93469.0,93461.0,0.213993]
[1734970031878,0.213934,93487.0,93466.0,0.213981]
[1734970032079,0.213933,93488.0,93467.0,0.10398632]
[1734970032304,0.001,93471.0,93467.0,0.10398632]
[1734970032509,0.213933,93488.0,93468.0,0.213976]
[1734970032710,0.213926,93491.0,93473.0,0.213963]
[1734970032873,0.0013371,93490.0,93473.0,0.213963]
[1734970033076,0.15149702,93490.0,93473.0,0.213963]
[1734970033302,0.00149702,93490.0,93478.0,0.213953]
[1734970033501,0.00015992,93490.0,93468.0,0.10398632]
[1734970033708,0.00015992,93490.0,93474.0,0.213963]
[1734970034123,0.15015992,93490.0,93469.0,0.11658348]
[1734970034531,0.15315992,93490.0,93474.0,0.213961]
[1734970034739,0.15015992,93490.0,93474.0,0.213961]
[1734970035168,0.002,93488.0,93474.0,0.213961]
[1734970035484,0.00315992,93490.0,93475.0,0.02872573]
[1734970035808,0.078,93487.0,93455.0,0.2484982]
[1734970036012,0.25532378,93486.0,93437.0,0.35248452]
[1734970036274,0.15,93456.0,93438.0,0.2484982]
[1734970036476,0.15,93456.0,93437.0,0.10398632]
[1734970036477,0.15,93454.0,93450.0,4e-05]
[1734970037521,0.15133755,93462.0,93450.0,4e-05]
[1734970037727,0.15,93458.0,93450.0,4e-05]
[1734970037929,0.15133755,93458.0,93450.0,4e-05]
[1734970038140,0.214002,93457.0,93450.0,4e-05]
[1734970038353,0.15,93456.0,93450.0,0.00604]
[1734970038567,0.214011,93453.0,93450.0,0.00604]
[1734970038744,0.15133763,93452.0,93450.0,4e-05]
[1734970038959,0.15133763,93452.0,93450.0,0.00304]
[1734970039166,0.15,93450.0,93429.0,0.02194658]
[1734970039374,0.15,93450.0,93439.0,0.214042]
[1734970039584,0.15,93450.0,93437.0,0.214046]
[1734970040620,0.15,93452.0,93435.0,0.00016037]
[1734970040830,0.00133768,93451.0,93435.0,0.00016037]
[1734970041043,0.003,93452.0,93440.0,0.023]
[1734970041283,0.427857,93489.0,93443.0,0.2484982]
[1734970041498,0.00133725,93488.0,93472.0,0.213966]
[1734970041711,0.213933,93487.0,93472.0,0.213966]
[1734970041916,0.427876,93485.0,93468.0,0.213975]
[1734970042324,0.10532345,93484.0,93453.0,0.214011]
[1734970042532,0.213967,93473.0,93457.0,0.214]
[1734970042739,0.10532369,93472.0,93445.0,0.214028]
[1734970042960,0.213992,93462.0,93445.0,0.214028]
[1734970043175,0.214006,93456.0,93441.0,0.214036]
[1734970043395,0.15,93455.0,93431.0,0.02109035]
[1734970043602,0.428019,93454.0,93436.0,0.21405]
[1734970043826,0.15,93451.0,93436.0,0.21405]
[1734970044041,0.15,93451.0,93431.0,0.23514935]
[1734970044042,0.214029,93446.0,93431.0,0.214059]
[1734970044257,0.214032,93444.0,93427.0,0.174669]
[1734970044469,0.15,93439.0,93427.0,0.174669]
[1734970044680,0.15,93439.0,93428.0,0.214068]
[1734970045153,0.15,93439.0,93433.0,0.214057]
[1734970045597,0.004,93444.0,93433.0,0.214057]
[1734970047068,0.001,93439.0,93433.0,0.214057]
[1734970047213,0.0764,93443.0,93433.0,0.001]
[1734970047674,0.0764,93443.0,93429.0,0.214066]
[1734970047879,0.00133773,93442.0,93428.0,8.56e-05]
[1734970048250,0.15,93434.0,93433.0,0.003]
[1734970048454,0.15133783,93434.0,93433.0,0.003]
[1734970048670,0.15,93434.0,93428.0,8.56e-05]
[1734970049017,0.15,93434.0,93429.0,0.001]
[1734970049224,0.15,93434.0,93417.0,0.214093]
[1734970049426,0.00053293,93434.0,93425.0,0.214073]
[1734970050061,0.00053293,93434.0,93418.0,0.14287962]
[1734970050062,0.00053293,93434.0,93419.0,0.214089]
[1734970050253,0.00053293,93434.0,93420.0,0.10398632]
[1734970050488,0.00053293,93434.0,93433.0,0.002]
[1734970050668,0.00053293,93434.0,93420.0,0.10398632]
[1734970050870,0.15187074,93434.0,93415.0,0.000171]
[1734970051083,0.15053293,93434.0,93425.0,0.002]
[1734970051340,0.15053293,93434.0,93418.0,0.214091]
[1734970051545,0.15053293,93434.0,93425.0,0.214074]
[1734970051752,0.15053293,93434.0,93433.0,0.002]
[1734970052211,0.00053293,93434.0,93433.0,0.002]
[1734970052423,0.15,93439.0,93433.0,0.002]
[1734970052424,0.00133782,93439.0,93433.0,0.002]
[1734970052641,0.00133782,93439.0,93433.0,0.00016037]
[1734970052849,0.10398632,93438.0,93433.0,0.00016037]
[1734970053064,0.21538595,93437.0,93433.0,0.00016037]
[1734970053283,0.214052,93435.0,93433.0,0.00016037]
[1734970053484,0.10632444,93434.0,93433.0,0.00016037]
[1734970053693,0.342096,93416.0,93415.0,0.000171]
[1734970053939,0.44608232,93416.0,93415.0,0.000171]
[1734970054168,0.214105,93412.0,93373.0,0.214193]
[1734970054381,0.10532481,93411.0,93373.0,0.0214193]
[1734970054588,0.214112,93409.0,93373.0,0.0214193]
[1734970054797,0.07638997,93397.0,93373.0,0.0214193]
[1734970055011,0.10532481,93408.0,93373.0,0.0214193]
[1734970055012,0.214152,93392.0,93374.0,0.214192]
[1734970055215,0.214152,93392.0,93373.0,0.0214193]
[1734970055415,0.214152,93392.0,93374.0,0.02356153]
[1734970055619,0.00133849,93391.0,93372.0,0.214196]
[1734970055823,0.214144,93395.0,93372.0,0.214196]
[1734970056027,0.214148,93393.0,93374.0,0.214192]
[1734970056235,0.00133851,93392.0,93374.0,0.214192]
[1734970056414,0.214153,93391.0,93373.0,0.001]
[1734970056857,0.10532483,93390.0,93373.0,0.001]
[1734970057062,0.214174,93382.0,93373.0,0.001]
[1734970057265,0.214173,93383.0,93372.0,0.00053293]
[1734970057473,0.214176,93381.0,93372.0,0.00053293]
[1734970057682,0.428353,93381.0,93372.0,0.00053293]
[1734970057896,0.214188,93376.0,93372.0,0.00053293]
[1734970058103,0.15,93373.0,93372.0,0.00053293]
[1734970058309,0.25532525,93373.0,93372.0,0.00053293]
[1734970058519,0.25532525,93373.0,93344.0,0.0141251]
[1734970058520,0.21424,93354.0,93344.0,0.0141251]
[1734970058721,0.214242,93352.0,93350.0,0.00020044]
[1734970058927,0.10532557,93351.0,93350.0,0.00020044]
[1734970059140,0.00133925,93351.0,93333.0,49.730839]
[1734970059340,0.15,93358.0,93334.0,0.10414667]
[1734970059549,0.15,93358.0,93335.0,0.21428]
[1734970059550,0.15,93356.0,93335.0,0.21428]
[1734970059728,0.214214,93365.0,93337.0,0.214277]
[1734970060020,0.15,93362.0,93338.0,0.10398632]
[1734970060213,0.21556098,93361.0,93343.0,0.214261]
[1734970060421,0.001,93351.0,93339.0,0.214272]
[1734970060833,0.214222,93361.0,93338.0,0.10398632]
[1734970061250,0.15,93360.0,93341.0,0.214267]
[1734970061455,0.00133898,93359.0,93341.0,0.214267]
[1734970061871,0.00173291,93351.0,93341.0,0.214267]
[1734970062075,0.428458,93358.0,93338.0,0.31825832]
[1734970062279,0.00133898,93357.0,93335.0,0.214281]
[1734970062490,0.15,93356.0,93334.0,0.00016035]
[1734970062696,0.214258,93345.0,93334.0,0.00016035]
[1734970062899,0.214249,93350.0,93334.0,0.00016035]
[1734970063103,0.00107028,93349.0,93334.0,0.21444235]
[1734970063284,0.15,93352.0,93334.0,0.31842867]
[1734970063520,0.00107028,93351.0,93334.0,0.31842867]
[1734970064145,0.15,93352.0,93335.0,0.10505764]
[1734970064354,0.15,93352.0,93336.0,0.214279]
[1734970064552,0.006,93359.0,93345.0,0.214257]
[1734970064763,0.15,93357.0,93337.0,0.13984691]
[1734970064970,0.15,93355.0,93334.0,0.001]
[1734970065172,0.15,93355.0,93308.0,0.1209654]
[1734970065173,0.15,93353.0,93308.0,0.1209654]
[1734970065380,0.15,93353.0,93334.0,0.00107133]
[1734970065592,0.25398632,93353.0,93321.0,0.1209654]
[1734970065800,0.15,93353.0,93335.0,0.10398632]
[1734970066002,0.15,93353.0,93341.0,0.214266]
[1734970066201,0.15107028,93359.0,93341.0,0.214266]
[1734970066403,0.15,93357.0,93336.0,0.214279]
[1734970066662,0.003,93353.0,93342.0,0.214264]
[1734970067171,0.15,93355.0,93342.0,0.214264]
[1734970067601,0.003,93357.0,93342.0,0.214264]
[1734970068216,0.001,93353.0,93343.0,0.00107123]
[1734970068415,0.15,93362.0,93348.0,0.214251]
[1734970068824,0.001,93353.0,93348.0,0.214251]
[1734970069252,0.15,93363.0,93346.0,0.214255]
[1734970069460,0.00107028,93362.0,93346.0,0.214255]
[1734970069662,0.001,93362.0,93347.0,0.00107118]
[1734970069866,0.002,93355.0,93352.0,0.214242]
[1734970070085,0.002,93355.0,93327.0,0.1209654]
[1734970070294,0.214216,93364.0,93327.0,0.1209654]
[1734970070295,0.00107028,93363.0,93348.0,0.001]
[1734970070502,0.00307028,93363.0,93350.0,0.214247]
[1734970070916,0.002,93363.0,93348.0,0.001]
[1734970071121,0.002,93363.0,93349.0,0.00107115]
[1734970071323,0.002,93363.0,93352.0,0.214241]
[1734970071751,0.002,93363.0,93352.0,0.432483]
[1734970071956,0.002,93363.0,93357.0,0.214231]
[1734970072383,0.002,93363.0,93359.0,0.214226]
[1734970072586,0.0021714,93363.0,93359.0,0.214226]
[1734970073026,0.0021714,93363.0,93347.0,0.0789]
[1734970073027,0.0001714,93363.0,93347.0,0.0789]
[1734970073234,0.0001714,93363.0,93358.0,0.214228]
[1734970073855,0.0001714,93363.0,93360.0,0.214224]
[1734970074091,0.0001714,93363.0,93358.0,0.214228]
[1734970074518,0.0001714,93363.0,93360.0,0.428448]
[1734970076238,0.0001714,93363.0,93360.0,0.430448]
[1734970076691,0.0001714,93363.0,93360.0,0.428448]
[1734970076899,0.0001714,93363.0,93360.0,0.430448]
[1734970077106,0.0001714,93363.0,93360.0,0.428448]
[1734970077318,0.0001314,93363.0,93362.0,0.214219]
[1734970077522,0.0001314,93363.0,93362.0,0.31820532]
[1734970077950,0.0001314,93363.0,93362.0,0.214219]
[1734970079259,0.0001314,93363.0,93360.0,0.214224]
[1734970079472,0.0001314,93363.0,93362.0,0.214219]
[1734970079679,0.0011314,93363.0,93362.0,0.32420532]
[1734970079890,0.0001314,93363.0,93357.0,0.21423]
[1734970080095,0.0001314,93363.0,93362.0,0.003]
[1734970080305,0.0011314,93363.0,93362.0,0.008]
[1734970080525,0.0011314,93363.0,93362.0,0.003]
[1734970080949,0.0021314,93363.0,93362.0,0.01]
[1734970081158,0.0001314,93363.0,93362.0,0.003]
[1734970081379,0.0001314,93363.0,93361.0,0.21422]
[1734970081843,0.0001314,93363.0,93362.0,0.003]
[1734970082050,0.0001314,93363.0,93362.0,0.217219]
[1734970082265,0.0001314,93363.0,93362.0,0.214219]
[1734970082478,0.0001314,93363.0,93362.0,0.219219]
[1734970082687,0.0011314,93363.0,93362.0,0.222219]
[1734970082911,0.0011314,93363.0,93362.0,0.008]
[1734970083347,0.0001314,93363.0,93349.0,0.3352144]
[1734970083554,0.0001314,93363.0,93350.0,0.10398632]
[1734970083762,0.0011314,93363.0,93362.0,0.005]
[1734970083973,0.0001314,93363.0,93362.0,0.00107096]
[1734970084191,0.0001314,93363.0,93362.0,0.03105728]
[1734970084408,0.0001314,93363.0,93362.0,0.03298632]
[1734970084622,0.0001314,93363.0,93362.0,0.003]
[1734970084837,0.0001314,93363.0,93362.0,0.00607097]
[1734970085278,0.0001314,93363.0,93362.0,0.12281799]
[1734970085517,0.0001314,93363.0,93362.0,0.11105729]
[1734970085730,0.0001314,93363.0,93362.0,0.22902269]
[1734970085939,0.0001314,93363.0,93362.0,0.22795172]
[1734970086161,0.0011314,93363.0,93362.0,0.22795172]
[1734970086409,0.0001314,93363.0,93362.0,0.1209654]
[1734970086628,0.0001314,93363.0,93362.0,0.12203631]
[1734970086853,0.0011314,93363.0,93362.0,0.31242263]
[1734970087058,0.0001314,93363.0,93362.0,0.40635172]
[1734970087473,0.0011314,93363.0,93362.0,0.31135172]
[1734970087681,0.0011314,93363.0,93362.0,0.31635172]
[1734970088108,0.00015979,93368.0,93363.0,0.428434]
[1734970088319,0.00015979,93368.0,93365.0,0.214213]
[1734970088545,0.214114,93409.0,93364.0,0.20904335]
[1734970088546,0.0817,93417.0,93400.0,0.214132]
[1734970088980,0.07383345,93401.0,93400.0,0.214132]
[1734970089184,0.07383345,93401.0,93388.0,0.0821]
[1734970089392,0.07383345,93401.0,93396.0,0.02187511]
[1734970089609,0.07383345,93401.0,93394.0,0.214144]
[1734970089821,0.07483345,93401.0,93400.0,0.006]
[1734970090031,0.06497079,93401.0,93400.0,0.006]
[1734970090238,0.06397079,93401.0,93400.0,0.10398632]
[1734970090443,0.06397079,93401.0,93400.0,0.10505686]
[1734970090444,0.0395162,93401.0,93400.0,0.10505686]
[1734970090656,0.0817,93428.0,93421.0,0.214083]
[1734970090869,0.0817,93428.0,93400.0,0.1683895]
[1734970090870,0.21514128,93427.0,93403.0,0.1209654]
[1734970091083,0.10398632,93427.0,93403.0,0.1209654]
[1734970091297,0.214125,93404.0,93400.0,0.001]
[1734970091504,0.08377028,93403.0,93384.0,0.214167]
[1734970091719,0.08377028,93403.0,93389.0,0.214157]
[1734970092104,0.001,93401.0,93400.0,0.006]
[1734970092319,0.001,93401.0,93378.0,0.214182]
[1734970092527,0.15,93399.0,93379.0,0.05493374]
[1734970092741,0.00107028,93398.0,93384.0,0.214168]
[1734970093353,0.00107028,93398.0,93384.0,0.21432844]
[1734970093567,0.00107028,93398.0,93388.0,0.214158]
[1734970093770,0.00107028,93400.0,93384.0,0.21432844]
[1734970094185,0.00107028,93400.0,93384.0,0.00016044]
[1734970094599,0.15,93398.0,93384.0,0.00016044]
[1734970094807,0.15,93396.0,93384.0,0.00016044]
[1734970095020,0.15,93388.0,93384.0,0.00016044]
[1734970095239,0.00107028,93387.0,93384.0,0.00016044]
[1734970095684,0.15,93386.0,93384.0,0.00016044]
[1734970095912,0.15107028,93386.0,93384.0,0.00016044]
[1734970096158,0.15,93386.0,93384.0,0.00016044]
[1734970096398,0.15,93386.0,93384.0,0.00116044]
[1734970096680,0.31813032,93395.0,93384.0,0.00116044]
[1734970096681,0.1,93425.0,93384.0,0.00016044]
[1734970096948,0.19508349,93427.0,93384.0,0.10914676]
[1734970096949,0.1289,93413.0,93384.0,0.10914676]
[1734970097184,0.1289,93413.0,93395.0,0.214143]
[1734970097672,0.1289,93413.0,93395.0,0.428286]
[1734970097925,0.1289,93413.0,93395.0,0.214143]
[1734970098240,0.23288632,93413.0,93399.0,0.214133]
[1734970098488,0.214093,93418.0,93384.0,0.12206144]
[1734970098489,0.214084,93422.0,93405.0,0.21412]
[1734970098785,0.0829,93425.0,93410.0,0.214108]
[1734970099055,0.0829,93425.0,93406.0,0.021412]
[1734970099056,0.0001714,93428.0,93420.0,0.214086]
[1734970099319,0.006,93413.0,93412.0,0.214105]
[1734970099612,0.006,93413.0,93412.0,0.31809132]
[1734970100056,0.005,93422.0,93412.0,0.39844938]
[1734970100262,0.005,93422.0,93421.0,0.214084]
[1734970100683,0.005,93422.0,93421.0,0.31807032]
[1734970101506,0.0051714,93428.0,93422.0,0.214082]
[1734970101719,0.0031714,93428.0,93427.0,0.21407]
[1734970101959,0.0031714,93428.0,93427.0,0.37127015]
[1734970102421,0.0001714,93428.0,93427.0,0.31805632]
[1734970103285,0.0011714,93428.0,93427.0,0.32705632]
[1734970103726,0.0011714,93428.0,93427.0,0.22307]
[1734970104143,0.0011714,93428.0,93427.0,0.009]
[1734970104403,0.0011714,93428.0,93421.0,0.004]
[1734970104618,0.0001714,93428.0,93421.0,0.004]
[1734970104834,0.15,93426.0,93421.0,0.004]
[1734970105042,0.00133804,93425.0,93402.0,0.214126]
[1734970105242,0.15,93419.0,93400.0,4e-05]
[1734970105465,0.15,93409.0,93400.0,4e-05]
[1734970105691,0.00133828,93408.0,93400.0,4e-05]
[1734970105899,0.15,93402.0,93400.0,4e-05]
[1734970106115,0.40025483,93401.0,93400.0,4e-05]
[1734970106320,0.54891632,93401.0,93400.0,4e-05]
[1734970106537,0.15,93370.0,93362.0,8.57e-05]
[1734970106760,0.15,93370.0,93365.0,0.00016044]
[1734970106993,0.00133876,93369.0,93365.0,0.00016044]
[1734970107197,0.15,93370.0,93366.0,0.21421]
[1734970107412,0.15,93370.0,93365.0,0.00016044]
[1734970107627,0.214171,93383.0,93365.0,0.00016044]
[1734970107840,0.214176,93381.0,93365.0,0.00016044]
[1734970108048,0.15,93379.0,93365.0,0.00016044]
[1734970108261,0.00133876,93378.0,93365.0,0.00016044]
[1734970108466,0.001,93370.0,93365.0,0.00016044]
[1734970108690,0.00133863,93378.0,93365.0,0.00016044]
[1734970109120,0.004,93383.0,93338.0,0.1]
[1734970109121,0.21417,93384.0,93358.0,0.02353675]
[1734970109334,0.003,93379.0,93366.0,0.21421]
[1734970109556,0.003,93379.0,93357.0,0.00015979]
[1734970109557,0.005,93378.0,93367.0,0.023]
[1734970109981,0.005,93378.0,93366.0,0.023]
[1734970110191,0.007,93378.0,93370.0,0.214201]
[1734970110830,0.002,93378.0,93370.0,0.214201]
[1734970111032,0.004,93378.0,93370.0,0.214201]
[1734970111466,0.15133863,93387.0,93366.0,0.023]
[1734970111684,0.001,93378.0,93366.0,0.023]
[1734970111899,0.001,93378.0,93360.0,0.023]
[1734970112155,0.15,93376.0,93358.0,0.214229]
[1734970112419,0.15,93380.0,93363.0,0.023]
[1734970112646,0.15,93380.0,93371.0,0.214199]
[1734970112848,0.001,93378.0,93366.0,0.21421]
[1734970113054,0.15,93380.0,93369.0,0.023]
[1734970113266,0.00133861,93384.0,93369.0,0.023]
[1734970113491,0.15,93387.0,93371.0,0.023]
[1734970113692,0.00133861,93386.0,93371.0,0.023]
[1734970113899,0.00133861,93386.0,93369.0,0.023]
[1734970114106,0.00133861,93386.0,93368.0,0.214206]
[1734970114881,0.15,93384.0,93367.0,0.214206]
[1734970115087,0.15133861,93384.0,93367.0,0.428413]
[1734970115286,0.15,93384.0,93368.0,0.214206]
[1734970115714,0.15,93384.0,93368.0,0.428412]
[1734970115918,0.15233861,93386.0,93368.0,0.214204]
[1734970116097,0.001,93386.0,93373.0,0.214193]
[1734970116297,0.15,93390.0,93373.0,0.214193]
[1734970116494,0.214157,93389.0,93373.0,0.214193]
[1734970116695,0.214167,93385.0,93360.0,0.023]
[1734970116902,0.25532493,93384.0,93358.0,0.06944785]
[1734970117103,0.15,93366.0,93352.0,0.214241]
[1734970117345,0.15,93366.0,93350.0,4e-05]
[1734970117641,0.15,93366.0,93358.0,0.214229]
[1734970117842,0.15,93366.0,93357.0,0.21439079]
[1734970118404,0.001,93366.0,93357.0,0.00015979]
[1734970118904,0.15133886,93370.0,93357.0,0.00015979]
[1734970119089,0.214213,93365.0,93357.0,0.00015979]
[1734970119217,0.15,93364.0,93347.0,0.16214462]
[1734970119422,0.15,93364.0,93357.0,8.55e-05]
[1734970119822,0.15,93364.0,93361.0,0.21422]
[1734970120279,0.00016029,93365.0,93358.0,0.214229]
[1734970120661,0.00016029,93365.0,93357.0,0.2143155]
[1734970121539,0.00016029,93365.0,93357.0,8.55e-05]
[1734970121739,0.00016029,93365.0,93358.0,0.001]
[1734970121909,0.00016029,93365.0,93359.0,0.214226]
[1734970122110,0.00016029,93365.0,93363.0,0.214215]
[1734970122340,0.00016029,93365.0,93364.0,0.00053656]
[1734970122542,0.00016029,93365.0,93363.0,0.214215]
[1734970123115,0.02945327,93386.0,93357.0,8.55e-05]
[1734970123322,0.15,93384.0,93358.0,0.214229]
[1734970123537,0.15,93376.0,93358.0,0.214229]
[1734970123905,0.15,93373.0,93358.0,0.214229]
[1734970124109,0.00080209,93372.0,93357.0,8.55e-05]
[1734970124521,0.15,93365.0,93358.0,0.001]
[1734970124799,0.15080209,93365.0,93358.0,0.001]
[1734970125240,0.15080209,93365.0,93357.0,8.55e-05]
[1734970125440,0.15,93365.0,93357.0,8.55e-05]
[1734970125640,0.15,93367.0,93357.0,8.55e-05]
[1734970125918,0.00080209,93366.0,93358.0,0.002]
[1734970126121,0.00080209,93366.0,93357.0,8.55e-05]
[1734970126321,0.15,93367.0,93358.0,0.002]
[1734970126525,0.14963426,93367.0,93358.0,0.002]
[1734970126730,0.214189,93376.0,93359.0,0.21529711]
[1734970126863,0.00080209,93375.0,93359.0,0.214226]
[1734970127066,0.214157,93390.0,93360.0,0.12805733]
[1734970127304,0.0814,93398.0,93380.0,0.214178]
[1734970127524,0.00016044,93398.0,93388.0,0.214159]
[1734970127735,0.00016044,93398.0,93370.0,0.214201]
[1734970127736,0.00016044,93398.0,93389.0,0.0214159]
[1734970127943,0.00016044,93398.0,93369.0,0.0211376]
[1734970127944,0.00016044,93398.0,93394.0,0.214145]
[1734970128986,0.00616044,93398.0,93396.0,0.214141]
[1734970129188,0.00616044,93398.0,93394.0,0.214145]
[1734970129189,0.00116044,93398.0,93385.0,0.214167]
[1734970129398,0.00116044,93398.0,93397.0,0.12698632]
[1734970129601,0.00216044,93398.0,93397.0,0.12805677]
[1734970130010,0.00216044,93398.0,93397.0,0.12698632]
[1734970130423,0.00116044,93398.0,93397.0,0.12698632]
[1734970130849,0.00216044,93398.0,93397.0,0.12698632]
[1734970131070,0.00216044,93398.0,93397.0,0.12805677]
[1734970131277,0.00016044,93398.0,93397.0,0.12805677]
[1734970131594,0.00016044,93398.0,93397.0,0.13105677]
[1734970131806,0.00016044,93398.0,93397.0,0.00407045]
[1734970132008,0.00016044,93398.0,93396.0,0.23556207]
[1734970132209,0.00116044,93398.0,93397.0,0.013]